Workbook

Sheet 変動損益計算書
A2: 変動損益計算書 | E2: 企業名 株式会社〇〇建設 | I2: （最終期決算月 2020年 3月 31日）
D3: 2015年度 | E3: 2016年度 | F3: 2017年度 | G3: 2018年度 | H3: 2019年度 | I3: 備 考
A4: ① | B4: 売 上 高 | D4: 435000 | E4: 330000 | F4: 170000 | G4: 318000 | H4: 200000 | I4: コストポイント
A5: 変動費 | B5: 原価変動費 | C5: 主要材料費 | D5: 165000 | E5: 50000 | F5: 32000 | G5: 78000 | H5: 45000 | I5: 2016年度より材料支給工事増加
C6: 外注費 | D6: 90000 | E6: 80000 | F6: 22000 | G6: 82000 | H6: 22000 | I6: 受注金額の多い年は外注先と連携
C7: 在庫増減 | D7: 4000 | E7: 2000 | F7: 0 | G7: 0 | H7: 0 | I7: 材料支給が主流で在庫必要なし
J9: =IF(C9="","○","") -> ○
J10: ○
J11: ○
J12: ○
J13: ○
J14: ○
B15: 販管変動費 | C15: 支払手数料 | E15: 4000 | F15: 5000 | G15: 4000 | H15: 4000 | I15: 受注活動のため2016年度から発生
J19: =IF(C19="","○","") -> ○
J20: ○
J21: ○
J22: ○
J23: ○
J24: ○
A25: ② | B25: 変動費 | D25: =SUM(D5:D24) -> 259000 | E25: =SUM(E5:E24) -> 136000 | F25: =SUM(F5:F24) -> 59000 | G25: =SUM(G5:G24) -> 164000 | H25: =SUM(H5:H24) -> 71000
A26: ③ | B26: 限界利益 | D26: =D4-D25 -> 176000 | E26: =E4-E25 -> 194000 | F26: =F4-F25 -> 111000 | G26: =G4-G25 -> 154000 | H26: =H4-H25 -> 129000
A27: 人件費 | B27: 原価人件費 | C27: 賃金給料 | D27: 73500 | E27: 77000 | F27: 53000 | G27: 55000 | H27: 50000 | I27: 2017年度以降特需減少→人員削減
C28: 賞与 | D28: 7000 | E28: 6000 | F28: 6000 | G28: 6000 | H28: 5000
C29: 法定福利費 | D29: 11000 | E29: 10500 | F29: 12000 | G29: 9000 | H29: 9000
C30: 福利厚生費 | D30: 2000 | E30: 1500 | F30: 3000 | G30: 2500 | H30: 2200 | J30: =IF(C30="","○","") -> 
J31: ○
J32: ○
J33: ○
J34: ○
J35: ○
J36: ○
B37: 販管人件費 | C37: 役員報酬 | D37: 16000 | E37: 16000 | F37: 20000 | G37: 20000 | H37: 20000
C38: 給与手当 | D38: 3000 | E38: 3000 | F38: 3000 | G38: 2000 | H38: 2000
C39: 法定福利費 | D39: 2400 | E39: 2400 | F39: 3000 | G39: 3000 | H39: 3000
C40: 福利厚生費 | D40: 500 | E40: 400 | F40: 350 | G40: 500 | H40: 300
J41: =IF(C41="","○","") -> ○
J42: ○
J43: ○
J44: ○
J45: ○
J46: ○
B47: ④ | C47: 計 | D47: =SUM(D27:D46) -> 115400 | E47: 116800 | F47: 100350 | G47: 98000 | H47: 91500
A48: 固定費 | B48: 原価固定費 | C48: 車両関係費 | D48: 11000 | E48: 11000 | F48: 10500 | G48: 9500 | H48: 8500
C49: 保険料 | D49: 1500 | E49: 1500 | F49: 1300 | G49: 1300 | H49: 700
C50: 消耗品費 | D50: 1200 | E50: 400 | F50: 1200 | G50: 800 | H50: 900
C51: 減価償却費 | D51: 18000 | E51: 23000 | F51: 7500 | G51: 13500 | H51: 12000 | I51: 2016年度は経営力向上計画提出一括償却適用 | J51: =IF(C51="","○","") -> 
C52: リース料 | D52: 900 | E52: 4500 | F52: 3500 | G52: 4500 | H52: 3500
J53: ○
J54: ○
J55: ○
J56: ○
J57: ○
B58: ⑤ | C58: 計 | D58: =SUM(D48:D57) -> 32600 | E58: 40400 | F58: 24000 | G58: 29600 | H58: 25600
B59: 販管固定費 | C59: 保険料 | D59: 2000 | E59: 1200 | F59: 2000 | G59: 1900 | H59: 2000
C60: 水道光熱費 | D60: 1800 | E60: 1500 | F60: 1500 | G60: 1500 | H60: 1500
C61: 消耗品費 | D61: 2300 | E61: 1200 | F61: 2000 | G61: 1900 | H61: 2000
C62: 租税公課 | D62: 2000 | E62: 3800 | F62: 9500 | G62: 500 | H62: 600
C63: 支払手数料 | D63: 1500 | E63: 1300 | F63: 1300 | G63: 1100 | H63: 1000 | J63: =IF(C63="","○","") -> 
C64: リース料 | D64: 2000 | E64: 2300 | F64: 2500 | G64: 2500 | H64: 2000
C65: 地代家賃 | D65: 2500 | E65: 2000 | F65: 2000 | G65: 2000 | H65: 2000
C66: 減価償却費 | D66: 2500 | E66: 1500 | F66: 400 | G66: 500 | H66: 500
J67: ○
J68: ○
B69: ⑥ | C69: 計 | D69: =SUM(D59:D68) -> 16600 | E69: 14800 | F69: 21200 | G69: 11900 | H69: 11600
B70: ⑦ | C70: その他固定費 | D70: ='固定費&運転資金'!D14 -> 2050 | E70: ='固定費&運転資金'!E14 -> 3150 | F70: ='固定費&運転資金'!F14 -> 2150 | G70: ='固定費&運転資金'!G14 -> 1200 | H70: ='固定費&運転資金'!H14 -> 1200 | I70: その他固定費計算内訳から転記
A71: ⑧ | B71: 固定費 | D71: =D47+D58+D69+D70 -> 166650 | E71: 175150 | F71: 147700 | G71: =G47+G58+G69+G70 -> 140700 | H71: 129900
A72: ⑨ | B72: 経常利益 | D72: =D26-D71 -> 9350 | E72: 18850 | F72: -36700 | G72: 13300 | H72: -900
A73: ⑩ | B73: 限界利益率 | D73: =D26/D4 -> 0.4045977011 | E73: =E26/E4 -> 0.5878787879 | F73: =F26/F4 -> 0.6529411765 | G73: =G26/G4 -> 0.4842767296 | H73: =H26/H4 -> 0.645 | I73: ③÷①
A74: ⑪ | B74: 労働分配率 | D74: =D47/D26 -> 0.6556818182 | E74: =E47/E26 -> 0.6020618557 | F74: =F47/F26 -> 0.9040540541 | G74: =G47/G26 -> 0.6363636364 | H74: =H47/H26 -> 0.7093023256 | I74: ④÷③
A75: ⑫ | B75: 売上高経常利益率 | D75: =D72/D4 -> 0.02149425287 | E75: =E72/E4 -> 0.05712121212 | F75: =F72/F4 -> -0.2158823529 | G75: =G72/G4 -> 0.04182389937 | H75: =H72/H4 -> -0.0045 | I75: ⑨÷①
C77: 必要売上高の試算 （目標利益を入力し確認）
C78: 固定費 | D78: =H71 -> 129900 | E78: 限界利益率 | F78: =H73 -> 0.645 | G78: 売上差額 | H78: =F79-F80 -> 1395.348837
C79: 目標利益 | D79: 0 | E79: 必要売上高 | F79: =D80/F78 -> 201395.3488 | G79: 月商平均 | H79: =H78/12 -> 116.2790698
C80: 計 | D80: =D78+D79 -> 129900 | E80: 現状売上高 | F80: =H4 -> 200000 | G80: 労働分配率 | H80: =H47/D80 -> 0.7043879908
D82: 2015年度 | E82: 2016年度 | F82: 2017年度 | G82: 2018年度 | H82: 2019年度
B83: 総資本 | D83: 210000 | E83: 180000 | F83: 230000 | G83: 180000 | H83: 230000
B84: 総資本回転率 | D84: =D4/D83 -> 2.071428571 | E84: =E4/E83 -> 1.833333333 | F84: 0.7391304348 | G84: 1.766666667 | H84: 0.8695652174
B85: 売上高経常利益率 | D85: =D72/D4*100 -> 2.149425287 | E85: =E72/E4*100 -> 5.712121212 | F85: -21.58823529 | G85: 4.182389937 | H85: -0.45
B86: 総資本経常利益率 | D86: =D72/D83*100 -> 4.452380952 | E86: =E72/E83*100 -> 10.47222222 | F86: -15.95652174 | G86: 7.388888889 | H86: -0.3913043478

Sheet 固定費&運転資金
A1: その他固定費計算内訳
D2: =変動損益計算書!D3 -> 2015年度 | E2: =変動損益計算書!E3 -> 2016年度 | F2: =変動損益計算書!F3 -> 2017年度 | G2: =変動損益計算書!G3 -> 2018年度 | H2: =変動損益計算書!H3 -> 2019年度 | I2: 計算内訳
A3: ① | B3: 売上原価 | D3: 385000 | E3: 266000 | F3: 162000 | G3: 265000 | H3: 165000 | I3: 決算書から合計金額転記
A4: ② | B4: 販売費一般管理費 | D4: 41000 | E4: 48500 | F4: 45000 | G4: 40000 | H4: 40000 | I4: 決算書から合計金額転記
A5: ③ | B5: 計 | D5: =D3+D4 -> 426000 | E5: =E3+E4 -> 314500 | F5: 207000 | G5: 305000 | H5: 205000 | I5: ①+②
A6: ④ | B6: 変動費合計 | D6: =変動損益計算書!D25 -> 259000 | E6: =変動損益計算書!E25 -> 136000 | F6: =変動損益計算書!F25 -> 59000 | G6: =変動損益計算書!G25 -> 164000 | H6: =変動損益計算書!H25 -> 71000 | I6: 変動損益計算書「変動費合計」
A7: ⑤ | B7: 人件費合計 | D7: =変動損益計算書!D47 -> 115400 | E7: =変動損益計算書!E47 -> 116800 | F7: =変動損益計算書!F47 -> 100350 | G7: =変動損益計算書!G47 -> 98000 | H7: =変動損益計算書!H47 -> 91500 | I7: 変動損益計算書「人件費合計」
A8: ⑥ | B8: 製造固定費 | D8: =変動損益計算書!D58 -> 32600 | E8: =変動損益計算書!E58 -> 40400 | F8: =変動損益計算書!F58 -> 24000 | G8: =変動損益計算書!G58 -> 29600 | H8: =変動損益計算書!H58 -> 25600 | I8: 変動損益計算書「製造固定費合計」
A9: ⑦ | B9: 販売固定費 | D9: =変動損益計算書!D69 -> 16600 | E9: =変動損益計算書!E69 -> 14800 | F9: =変動損益計算書!F69 -> 21200 | G9: =変動損益計算書!G69 -> 11900 | H9: =変動損益計算書!H69 -> 11600 | I9: 変動損益計算書「販売固定費合計」
A10: ⑧ | B10: 計 | D10: =SUM(D6:D9) -> 423600 | E10: =SUM(E6:E9) -> 308000 | F10: 204550 | G10: 303500 | H10: 199700 | I10: ④～⑦の合計
A11: ⑨ | B11: 差引 | D11: =D5-D10 -> 2400 | E11: =E5-E10 -> 6500 | F11: 2450 | G11: 1500 | H11: 5300 | I11: ⑦＝③－⑧
A12: ⑩ | B12: 営業外収益 | D12: 600 | E12: 3500 | F12: 400 | G12: 450 | H12: 4200
A13: ⑪ | B13: 営業外費用 | D13: 250 | E13: 150 | F13: 100 | G13: 150 | H13: 100
A14: ⑫ | B14: その他固定費 | D14: =D11-D12+D13 -> 2050 | E14: =E11-E12+E13 -> 3150 | F14: 2150 | G14: 1200 | H14: 1200 | I14: ⑨―⑩+⑪
D16: 2015年度 | E16: 2016年度 | F16: 2017年度 | G16: 2018年度 | H16: 2019年度
B17: 売上債権
C18: 受取手形 | D18: 6000 | E18: 10000 | H18: 8000
C19: 完成工事未収金 | D19: 35000 | E19: 43000 | F19: 23000 | G19: 13000 | H19: 35000
B21: 棚卸資産
C22: 原材料 | D22: 3000 | E22: 1000 | F22: 1000 | G22: 1000 | H22: 800
C23: 未成工事支出金 | D23: 13000 | E23: 12500 | F23: 13000 | G23: 10000
C24: 貯蔵品
B25: ①計 | D25: =SUM(D19:D24) -> 51000 | E25: =SUM(E19:E24) -> 56500 | F25: 37000 | G25: 24000 | H25: 35800
B27: 買入債務
C28: 支払手形 | D28: 14000 | E28: 15000 | F28: 16000 | G28: 30000 | H28: 16000
C29: 工事未払金 | D29: 7300 | E29: 2500 | F29: 4500 | G29: 2500 | H29: 8500
C31: ②計 | D31: =SUM(D28:D30) -> 21300 | E31: =SUM(E28:E30) -> 17500 | F31: 20500 | G31: 32500 | H31: 24500
B33: ①－②＝③差引計 | D33: =D25-D31 -> 29700 | E33: =E25-E31 -> 39000 | F33: 16500 | G33: -8500 | H33: 11300
A35: 資金調達
B36: 短期借入金 | D36: 10000 | E36: 10000 | F36: 10000 | G36: 10000 | H36: 10000
B38: ④計 | D38: =SUM(D36:D37) -> 10000 | E38: =SUM(E36:E37) -> 10000 | F38: 10000 | G38: 10000 | H38: 10000
A40: 必要運転資金調達過不足
B41: ③-④＝⑤ | D41: =D33-D38 -> 19700 | E41: =E33-E38 -> 29000 | F41: 6500 | G41: -18500 | H41: 1300
